[Event "57th Biel Festival ATO 2024"]
[Site "Biel"]
[Date "2024.07.23"]
[Round "7.41"]
[White "Galerne, Rene"]
[Black "Noel, Lucien"]
[Result "0-1"]
[ECO "B22"]
[WhiteElo "1773"]
[BlackElo "1714"]
[Annotator "NA"]
[PlyCount "114"]
[EventDate "2024.07.03"]
[EventType "swiss"]
[EventCountry "SUI"]
[SourceTitle "playchess.com"]
[Source "ChessBase"]
[SourceQuality "1"]
[TimeControl "40/5400+30:1800+30"]

1. e4 {[%emt 0:00:08]} c5 {[%emt 0:00:09]} 2. c3 {[%emt 0:00:26]} d5 {[%emt 0:00:12]} 3. exd5 {[%emt 0:00:12]} Nf6 {[%emt 0:00:09]} 4. d4 {[%emt 0:02:18]} Nxd5 {[%emt 0:00:30]} 5. Bb5+ {[%emt 0:02:32]} Nd7 {[%emt 0:00:55]} 6. c4 {[%emt 0:01:56]} N5f6 {[%emt 0:02:26]} 7. d5 {[%emt 0:00:20]} a6 {[%emt 0:00:12]} 8. Bxd7+ {[%emt 0:01:57]} Bxd7 {[%emt 0:02:14]} 9. Nc3 {[%emt 0:01:14]} Qc7 {[%emt 0:00:25]} 10. Nf3 {[%emt 0:00:56]} O-O-O {[%emt 0:01:32]} 11. Bg5 {[%emt 0:02:51]} e6 {[%emt 0:05:37]} 12. O-O {[%emt 0:02:57]} Bd6 {[%emt 0:03:58]} 13. Bh4 {[%emt 0:04:06]} h6 {[%emt 0:05:53]} 14. Bg3 {[%emt 0:04:19]} e5 {[%emt 0:09:43]} 15. Nd2 {[%emt 0:07:17]} Bg4 {[%emt 0:04:58]} 16. f3 {[%emt 0:00:46]} Bf5 {[%emt 0:00:16]} 17. Nde4 {[%emt 0:00:44]} Nxe4 {[%emt 0:09:18]} 18. fxe4 {[%emt 0:02:21]} Bg6 {[%emt 0:00:48]} 19. Qe2 {[%emt 0:03:10]} Qe7 {[%emt 0:03:26]} 20. Rac1 {[%emt 0:11:14]} Kc7 {[%emt 0:03:40]} 21. a3 {[%emt 0:06:22]} Rdf8 {[%emt 0:07:17]} 22. Na4 {[%emt 0:10:28]} Rb8 {[%emt 0:07:24]} 23. b4 {[%emt 0:03:18]} b6 {[%emt 0:01:08]} 24. Bf2 {[%emt 0:01:00]} f6 {[%emt 0:02:19]} 25. Qe3 {[%emt 0:01:14]} Rbc8 {[%emt 0:06:49]} 26. bxc5 {[%emt 0:00:54]} bxc5 {[%emt 0:00:11]} 27. Qc3 {[%emt 0:02:49]} Rb8 {[%emt 0:03:10]} 28. Qa5+ {[%emt 0:01:09]} Kd7 {[%emt 0:00:18]} 29. Bxc5 {[%emt 0:05:06]} Rhc8 {[%emt 0:00:44]} 30. Bxd6 {[%emt 0:00:58]} Qxd6 {[%emt 0:00:14]} 31. c5 {[%emt 0:00:37]} Rb5 {[%emt 0:01:23]} 32. Qxb5+ {[%emt 0:01:11]} axb5 {[%emt 0:00:09]} 33. Nb6+ {[%emt 0:01:20]} Qxb6 {[%emt 0:00:10]} 34. cxb6 {[%emt 0:00:18]} Rb8 {[%emt 0:00:17]} 35. Rc7+ {[%emt 0:00:55]} Kd6 {[%emt 0:00:26]} 36. Rfc1 {[%emt 0:02:54]} Rxb6 {[%emt 0:00:56]} 37. R1c6+ {[%emt 0:02:49]} Rxc6 {[%emt 0:00:10]} 38. Rxc6+ {[%emt 0:00:09]} Kd7 {[%emt 0:00:10]} 39. Rb6 {[%emt 0:03:36]} Bxe4 {[%emt 0:00:12]} 40. d6 {[%emt 0:01:03]} Bc6 {[%emt 0:00:45]} 41. Ra6 {[%emt 0:31:29]} Kxd6 {[%emt 0:30:18]} 42. h4 {[%emt 0:00:54]} g5 {[%emt 0:02:58]} 43. hxg5 {[%emt 0:04:07]} hxg5 {[%emt 0:00:13]} 44. Kf2 {[%emt 0:00:11]} Kc7 {[%emt 0:00:49]} 45. a4 {[%emt 0:02:42]} bxa4 {[%emt 0:00:29]} 46. Ra7+ {[%emt 0:00:29]} Kd6 {[%emt 0:01:11]} 47. g3 {[%emt 0:00:35]} Kd5 {[%emt 0:00:58]} 48. Ra5+ {[%emt 0:00:27]} Kc4 {[%emt 0:01:13]} 49. Ke3 {[%emt 0:02:08]} f5 {[%emt 0:01:38]} 50. Rxe5 {[%emt 0:00:23]} Be4 {[%emt 0:00:32]} 51. g4 {[%emt 0:01:08]} a3 {[%emt 0:01:14]} 52. gxf5 {[%emt 0:00:11]} Bxf5 {[%emt 0:00:09]} 53. Rxf5 {[%emt 0:00:12]} a2 {[%emt 0:00:34]} 54. Ra5 {[%emt 0:00:15]} Kb3 {[%emt 0:00:25]} 55. Kd2 {[%emt 0:00:28]} g4 {[%emt 0:01:01]} 56. Kc1 {[%emt 0:01:50]} g3 {[%emt 0:00:27]} 57. Rb5+ {[%emt 0:00:51]} Ka4 {[%emt 0:00:16]} 0-1

[Event "57th Biel Festival ATO 2024"]
[Site "Biel"]
[Date "2024.07.23"]
[Round "7.42"]
[White "Meise, Volker"]
[Black "Speerli, Maria"]
[Result "1/2-1/2"]
[ECO "B32"]
[WhiteElo "1772"]
[BlackElo "1540"]
[Annotator "NA RC"]
[PlyCount "49"]
[EventDate "2024.07.03"]
[EventType "swiss"]
[EventCountry "SUI"]
[SourceTitle "playchess.com"]
[Source "ChessBase"]
[SourceQuality "1"]
[TimeControl "40/5400+30:1800+30"]

1. e4 {[%emt 0:00:00]} c5 {[%emt 0:00:00]} 2. Nf3 {[%emt 0:00:00]} Nc6 {[%emt 0:00:14]} 3. d4 {[%emt 0:00:00]} cxd4 {[%emt 0:00:30]} 4. Nxd4 {[%emt 0:03:58]} e5 {[%emt 0:00:00]} 5. Nb5 {[%emt 0:00:30]} d6 {[%emt 0:00:17]} 6. N1c3 {[%emt 0:01:04]} a6 {[%emt 0:01:33]} 7. Na3 {[%emt 0:00:30]} Nf6 {[%emt 0:00:30]} 8. Bd3 {[%emt 0:08:18]} Be7 {[%emt 0:02:39]} 9. Nc4 {[%emt 0:00:30]} b5 {[%emt 0:00:30]} 10. Ne3 {[%emt 0:00:30]} O-O {[%emt 0:00:30]} 11. O-O {[%emt 0:00:30]} b4 {[%emt 0:00:30]} 12. Ncd5 {[%emt 0:01:05]} Nxd5 {[%emt 0:01:25]} 13. Nxd5 {[%emt 0:00:28]} Bg5 {[%emt 0:02:36]} 14. Qh5 {[%emt 0:11:49]} Bxc1 {[%emt 0:05:05]} 15. Raxc1 {[%emt 0:01:30]} Be6 {[%emt 0:01:47]} 16. f4 {[%emt 0:07:43]} h6 {[%emt 0:05:20]} 17. Rf3 {[%emt 0:13:59]} Bxd5 {[%emt 0:06:37]} 18. exd5 {[%emt 0:02:14]} Nd4 {[%emt 0:00:29]} 19. Rg3 {[%emt 0:01:25]} Kh8 {[%emt 0:02:07]} 20. fxe5 {[%emt 0:11:09]} Qb6 {[%emt 1:07:51]} 21. Kh1 {[%emt 0:33:48]} dxe5 {[%emt 0:00:30]} 22. Qxe5 {[%emt 0:00:30]} f6 {[%emt 0:00:30]} 23. Qh5 {[%emt 0:00:30]} f5 {[%emt 0:00:30]} 24. Rg6 {[%emt 0:00:30]} Qb7 {[%emt 0:00:30]} 25. Rf1 {[%emt 0:00:30]} 1/2-1/2

[Event "57th Biel Festival ATO 2024"]
[Site "Biel"]
[Date "2024.07.23"]
[Round "7.45"]
[White "Kim, Danha"]
[Black "Klas, Friedrich Guenther"]
[Result "1-0"]
[ECO "B12"]
[WhiteElo "1491"]
[BlackElo "1750"]
[Annotator "NA RC"]
[PlyCount "85"]
[EventDate "2024.07.03"]
[EventType "swiss"]
[EventCountry "SUI"]
[SourceTitle "playchess.com"]
[Source "ChessBase"]
[SourceQuality "1"]
[TimeControl "40/5400+30:1800+30"]

1. e4 {[%emt 0:00:20]} c6 {[%emt 0:01:11]} 2. d4 {[%emt 0:00:35]} d5 {[%emt 0:00:33]} 3. e5 {[%emt 0:00:32]} Bf5 {[%emt 0:00:22]} 4. Nf3 {[%emt 0:00:42]} e6 {[%emt 0:00:40]} 5. Bd3 {[%emt 0:02:42]} Bxd3 {[%emt 0:00:52]} 6. Qxd3 {[%emt 0:00:30]} Qa5+ {[%emt 0:00:30]} 7. Bd2 {[%emt 0:01:08]} Qa6 {[%emt 0:00:19]} 8. Qxa6 {[%emt 0:02:42]} Nxa6 {[%emt 0:00:16]} 9. O-O {[%emt 0:00:33]} Bb4 {[%emt 0:00:30]} 10. c3 {[%emt 0:00:29]} Be7 {[%emt 0:00:01]} 11. Re1 {[%emt 0:01:29]} c5 {[%emt 0:04:56]} 12. Bg5 {[%emt 0:03:02]} h6 {[%emt 0:02:58]} 13. Bxe7 {[%emt 0:00:34]} Nxe7 {[%emt 0:00:02]} 14. Na3 {[%emt 0:00:40]} O-O {[%emt 0:03:23]} 15. Rac1 {[%emt 0:00:59]} cxd4 {[%emt 0:04:30]} 16. Nxd4 {[%emt 0:01:15]} Nc5 {[%emt 0:00:57]} 17. Re3 {[%emt 0:01:04]} a6 {[%emt 0:00:29]} 18. c4 {[%emt 0:02:54]} Rac8 {[%emt 0:05:30]} 19. Rec3 {[%emt 0:02:28]} Nc6 {[%emt 0:32:38]} 20. Nxc6 {[%emt 0:01:26]} bxc6 {[%emt 0:03:48]} 21. cxd5 {[%emt 0:00:29]} Nd7 {[%emt 0:01:42]} 22. dxe6 {[%emt 0:03:20]} Nxe5 {[%emt 0:00:09]} 23. exf7+ {[%emt 0:00:24]} Rxf7 {[%emt 0:00:30]} 24. Nc4 {[%emt 0:00:48]} Ng6 {[%emt 0:02:34]} 25. Nd6 {[%emt 0:00:20]} Rcf8 {[%emt 0:00:39]} 26. Nxf7 {[%emt 0:00:10]} Rxf7 {[%emt 0:00:01]} 27. Rxc6 {[%emt 0:00:15]} Nf4 {[%emt 0:00:46]} 28. R1c2 {[%emt 0:00:50]} Re7 {[%emt 0:00:46]} 29. Kf1 {[%emt 0:00:56]} Nd5 {[%emt 0:01:47]} 30. Rc1 {[%emt 0:02:20]} Rf7 {[%emt 0:00:05]} 31. Rxa6 {[%emt 0:03:46]} Nb4 {[%emt 0:00:28]} 32. Ra8+ {[%emt 0:01:07]} Kh7 {[%emt 0:00:30]} 33. a3 {[%emt 0:00:43]} Re7 {[%emt 0:00:00]} 34. Rc2 {[%emt 0:00:54]} Rb7 {[%emt 0:00:18]} 35. Re2 {[%emt 0:01:10]} Nd3 {[%emt 0:00:30]} 36. b4 {[%emt 0:01:10]} Nc1 {[%emt 0:00:15]} 37. Rc2 {[%emt 0:01:10]} Nd3 {[%emt 0:00:32]} 38. Re8 {[%emt 0:01:19]} Rf7 {[%emt 0:01:57]} 39. Ree2 {[%emt 0:00:46]} Ra7 {[%emt 0:00:48]} 40. Re4 {[%emt 0:01:42]} g5 {[%emt 0:01:47]} 41. g3 {[%emt 0:32:07]} Rxa3 {[%emt 0:30:44]} 42. Ke2 {[%emt 0:06:19]} Rb3 {[%emt 0:02:31]} 43. Re3 {[%emt 0:01:45]} 1-0

[Event "57th Biel Festival ATO 2024"]
[Site "Biel"]
[Date "2024.07.23"]
[Round "7.46"]
[White "Shin, Yisoo"]
[Black "Weihs, David"]
[Result "1/2-1/2"]
[ECO "C42"]
[WhiteElo "1449"]
[BlackElo "1733"]
[Annotator "NA RC"]
[PlyCount "22"]
[EventDate "2024.07.03"]
[EventType "swiss"]
[EventCountry "SUI"]
[SourceTitle "playchess.com"]
[Source "ChessBase"]
[SourceQuality "1"]
[TimeControl "40/5400+30:1800+30"]

1. e4 {[%emt 1:31:00]} e5 {[%emt 1:31:00]} 2. Nf3 {[%emt 0:00:30]} Nf6 {[%emt 0:00:30]} 3. Nxe5 {[%emt 0:00:30]} d6 {[%emt 0:00:30]} 4. Nf3 {[%emt 0:00:30]} Nxe4 {[%emt 0:00:30]} 5. d4 {[%emt 0:00:30]} d5 {[%emt 0:00:30]} 6. Bd3 {[%emt 0:00:30]} Bd6 {[%emt 0:00:30]} 7. c4 {[%emt 0:00:30]} Bb4+ {[%emt 0:00:30]} 8. Nbd2 {[%emt 0:00:30]} O-O {[%emt 0:00:30]} 9. O-O {[%emt 0:00:30]} Bxd2 {[%emt 0:00:30]} 10. Bxd2 {[%emt 0:00:30]} Bf5 {[%emt 0:00:30]} 11. Bf4 {[%emt 0:00:30]} c6 {[%emt 0:00:30]} 1/2-1/2

[Event "57th Biel Festival ATO 2024"]
[Site "Biel"]
[Date "2024.07.23"]
[Round "7.47"]
[White "Materia, Mario"]
[Black "Trachsel, Peter"]
[Result "1-0"]
[ECO "D17"]
[WhiteElo "1590"]
[BlackElo "1782"]
[Annotator "NA RC"]
[PlyCount "67"]
[EventDate "2024.07.03"]
[EventType "swiss"]
[EventCountry "SUI"]
[SourceTitle "playchess.com"]
[Source "ChessBase"]
[SourceQuality "1"]
[TimeControl "40/5400+30:1800+30"]

1. d4 {[%emt 0:00:07]} d5 {[%emt 0:00:13]} 2. c4 {[%emt 0:00:12]} c6 {[%emt 0:00:26]} 3. Nc3 {[%emt 0:00:42]} Nf6 {[%emt 0:00:25]} 4. Nf3 {[%emt 0:00:32]} dxc4 {[%emt 0:00:54]} 5. a4 {[%emt 0:00:31]} Bf5 {[%emt 0:00:36]} 6. Bf4 {[%emt 0:00:54]} e6 {[%emt 0:01:42]} 7. e3 {[%emt 0:00:23]} Nbd7 {[%emt 0:02:00]} 8. Bxc4 {[%emt 0:00:48]} Be7 {[%emt 0:01:33]} 9. O-O {[%emt 0:01:53]} O-O {[%emt 0:00:42]} 10. Re1 {[%emt 0:00:49]} Nd5 {[%emt 0:01:09]} 11. Bg3 {[%emt 0:00:38]} N7f6 {[%emt 0:05:03]} 12. Bd3 {[%emt 0:01:09]} Bg4 {[%emt 0:07:21]} 13. h3 {[%emt 0:01:24]} Bh5 {[%emt 0:00:22]} 14. Qb3 {[%emt 0:01:55]} Qb6 {[%emt 0:06:06]} 15. Qxb6 {[%emt 0:00:54]} Nxb6 {[%emt 0:00:10]} 16. a5 {[%emt 0:01:07]} Nbd7 {[%emt 0:01:39]} 17. e4 {[%emt 0:01:55]} Rfe8 {[%emt 0:08:06]} 18. Rab1 {[%emt 0:01:20]} Bb4 {[%emt 0:05:53]} 19. a6 {[%emt 0:04:06]} b6 {[%emt 0:01:12]} 20. Bf4 {[%emt 0:03:52]} Bxf3 {[%emt 0:01:50]} 21. gxf3 {[%emt 0:02:51]} e5 {[%emt 0:00:15]} 22. Be3 {[%emt 0:00:46]} exd4 {[%emt 0:02:03]} 23. Bxd4 {[%emt 0:00:10]} Ne5 {[%emt 0:07:03]} 24. Bxe5 {[%emt 0:00:42]} Rxe5 {[%emt 0:00:28]} 25. f4 {[%emt 0:00:52]} Ra5 {[%emt 0:06:11]} 26. f3 {[%emt 0:01:51]} Nh5 {[%emt 0:02:09]} 27. f5 {[%emt 0:00:30]} Kf8 {[%emt 0:07:16]} 28. e5 {[%emt 0:00:47]} Re8 {[%emt 0:08:09]} 29. e6 {[%emt 0:01:27]} Bxc3 {[%emt 0:06:37]} 30. bxc3 {[%emt 0:00:13]} fxe6 {[%emt 0:00:28]} 31. fxe6 {[%emt 0:00:43]} Rc5 {[%emt 0:00:25]} 32. Bxh7 {[%emt 0:00:48]} Rxc3 {[%emt 0:00:54]} 33. Bg6 {[%emt 0:00:13]} Rc8 {[%emt 0:08:02]} 34. e7+ {[%emt 0:00:07]} 1-0

[Event "57th Biel Festival ATO 2024"]
[Site "Biel"]
[Date "2024.07.23"]
[Round "7.48"]
[White "Loeffler, Helmut"]
[Black "Kuenzli, Manuel"]
[Result "1-0"]
[ECO "D04"]
[WhiteElo "1745"]
[BlackElo "1542"]
[Annotator "NA"]
[PlyCount "51"]
[EventDate "2024.07.03"]
[EventType "swiss"]
[EventCountry "SUI"]
[SourceTitle "playchess.com"]
[Source "ChessBase"]
[SourceQuality "1"]
[TimeControl "40/5400+30:1800+30"]

1. d4 {[%emt 0:00:08]} d5 {[%emt 0:00:19]} 2. Nf3 {[%emt 0:00:11]} Nf6 {[%emt 0:00:30]} 3. e3 {[%emt 0:00:12]} Bg4 {[%emt 0:00:40]} 4. Bd3 {[%emt 0:00:38]} e6 {[%emt 0:00:35]} 5. Nbd2 {[%emt 0:00:33]} Nc6 {[%emt 0:00:49]} 6. h3 {[%emt 0:01:21]} Bh5 {[%emt 0:00:31]} 7. O-O {[%emt 0:01:37]} Bd6 {[%emt 0:00:32]} 8. c3 {[%emt 0:02:39]} O-O {[%emt 0:01:04]} 9. Qc2 {[%emt 0:01:24]} Bg6 {[%emt 0:02:09]} 10. Bxg6 {[%emt 0:01:23]} fxg6 {[%emt 0:00:08]} 11. e4 {[%emt 0:01:42]} e5 {[%emt 0:03:01]} 12. exd5 {[%emt 0:03:47]} Nxd5 {[%emt 0:00:52]} 13. Qb3 {[%emt 0:02:52]} Be7 {[%emt 0:00:47]} 14. dxe5 {[%emt 0:02:10]} Kh8 {[%emt 0:01:59]} 15. Ne4 {[%emt 0:02:45]} Nb6 {[%emt 0:02:35]} 16. Be3 {[%emt 0:02:58]} Nd7 {[%emt 0:01:33]} 17. Rad1 {[%emt 0:03:00]} Qc8 {[%emt 0:01:00]} 18. e6 {[%emt 0:08:16]} Nf6 {[%emt 0:00:57]} 19. Neg5 {[%emt 0:02:22]} h6 {[%emt 0:02:24]} 20. Nf7+ {[%emt 0:01:08]} Kh7 {[%emt 0:01:25]} 21. Rfe1 {[%emt 0:02:37]} Na5 {[%emt 0:03:53]} 22. Qa4 {[%emt 0:05:28]} Qxe6 {[%emt 0:06:49]} 23. N7g5+ {[%emt 0:00:41]} hxg5 {[%emt 0:02:36]} 24. Nxg5+ {[%emt 0:00:13]} Kh8 {[%emt 0:00:50]} 25. Nxe6 {[%emt 0:00:25]} Rfc8 {[%emt 0:00:29]} 26. Qxa5 {[%emt 0:01:23]} 1-0

[Event "57th Biel Festival ATO 2024"]
[Site "Biel"]
[Date "2024.07.24"]
[Round "8.1"]
[White "Kulikov, Mikhail L"]
[Black "Nasybullina, Alfia"]
[Result "0-1"]
[ECO "B01"]
[WhiteElo "1954"]
[BlackElo "1997"]
[Annotator "RC"]
[PlyCount "77"]
[EventDate "2024.07.03"]
[EventType "swiss"]
[EventCountry "SUI"]
[SourceTitle "playchess.com"]
[Source "ChessBase"]
[SourceQuality "1"]
[TimeControl "40/5400+30:1800+30"]

1. e4 {[%emt 0:02:01]} d5 {[%emt 0:00:21]} 2. exd5 {[%emt 0:01:46]} Qxd5 {[%emt 0:00:08]} 3. d4 {[%emt 0:00:48]} e5 {[%emt 0:03:06]} 4. Nf3 {[%emt 0:03:19]} Bg4 {[%emt 0:05:08]} 5. Be2 {[%emt 0:15:31]} exd4 {[%emt 0:06:40]} 6. Nc3 {[%emt 0:06:36]} Bb4 {[%emt 0:05:04]} 7. O-O {[%emt 0:00:16]} Qd8 {[%emt 0:06:32]} 8. Nb5 {[%emt 0:29:51]} Ne7 {[%emt 0:06:19]} 9. Bf4 {[%emt 0:02:08]} Ba5 {[%emt 0:07:48]} 10. Nbxd4 {[%emt 0:02:36]} O-O {[%emt 0:01:39]} 11. h3 {[%emt 0:00:42]} Bxf3 {[%emt 0:06:02]} 12. Bxf3 {[%emt 0:00:21]} c6 {[%emt 0:03:53]} 13. c3 {[%emt 0:00:35]} Nd5 {[%emt 0:00:34]} 14. Bg3 {[%emt 0:02:22]} Bb6 {[%emt 0:06:50]} 15. Nb3 {[%emt 0:06:02]} Qg5 {[%emt 0:01:22]} 16. Kh2 {[%emt 0:00:38]} Rd8 {[%emt 0:03:13]} 17. Qc1 {[%emt 0:02:02]} Qxc1 {[%emt 0:02:00]} 18. Raxc1 {[%emt 0:00:03]} Na6 {[%emt 0:01:05]} 19. Rfe1 {[%emt 0:01:39]} Kf8 {[%emt 0:01:15]} 20. a3 {[%emt 0:00:39]} Nc5 {[%emt 0:01:11]} 21. Nxc5 {[%emt 0:01:15]} Bxc5 {[%emt 0:00:07]} 22. Rcd1 {[%emt 0:02:05]} Nb6 {[%emt 0:07:49]} 23. b4 {[%emt 0:03:10]} Be7 {[%emt 0:01:02]} 24. Be5 {[%emt 0:07:39]} Rxd1 {[%emt 0:01:08]} 25. Bxd1 {[%emt 0:00:53]} Re8 {[%emt 0:01:21]} 26. Bb3 {[%emt 0:02:42]} Nc8 {[%emt 0:00:23]} 27. Rd1 {[%emt 0:02:18]} Rd8 {[%emt 0:00:57]} 28. Rxd8+ {[%emt 0:01:39]} Bxd8 {[%emt 0:00:08]} 29. g4 {[%emt 0:00:48]} f6 {[%emt 0:01:20]} 30. Bd4 {[%emt 0:00:24]} Bb6 {[%emt 0:00:08]} 31. Kg3 {[%emt 0:01:22]} Bxd4 {[%emt 0:00:53]} 32. cxd4 {[%emt 0:00:30]} Nd6 {[%emt 0:00:34]} 33. Kf4 {[%emt 0:00:41]} Nb5 {[%emt 0:02:29]} 34. d5 {[%emt 0:00:20]} Nxa3 {[%emt 0:01:17]} 35. Ke4 {[%emt 0:01:35]} Nb5 {[%emt 0:00:34]} 36. f4 {[%emt 0:00:11]} Ke7 {[%emt 0:00:36]} 37. h4 {[%emt 0:00:21]} Kd6 {[%emt 0:03:47]} 38. g5 {[%emt 0:00:51]} h6 {[%emt 0:00:00]} 39. h5 {[%emt 0:00:00]} 0-1

[Event "57th Biel Festival ATO 2024"]
[Site "Biel"]
[Date "2024.07.24"]
[Round "8.2"]
[White "Kuenzli, Simon"]
[Black "King, Alexander"]
[Result "1-0"]
[ECO "B00"]
[WhiteElo "1919"]
[BlackElo "1935"]
[Annotator "RC"]
[PlyCount "71"]
[EventDate "2024.07.03"]
[EventType "swiss"]
[EventCountry "SUI"]
[SourceTitle "playchess.com"]
[Source "ChessBase"]
[SourceQuality "1"]
[TimeControl "40/5400+30:1800+30"]

1. e4 {[%emt 0:00:13]} e6 {[%emt 0:02:11]} 2. d4 {[%emt 0:00:15]} b6 {[%emt 0:00:06]} 3. Nc3 {[%emt 0:01:03]} Bb7 {[%emt 0:00:08]} 4. a3 {[%emt 0:00:19]} Nf6 {[%emt 0:02:15]} 5. f3 {[%emt 0:03:10]} d5 {[%emt 0:03:35]} 6. Bg5 {[%emt 0:03:26]} Be7 {[%emt 0:04:23]} 7. e5 {[%emt 0:04:51]} Nfd7 {[%emt 0:06:25]} 8. Bxe7 {[%emt 0:03:20]} Qxe7 {[%emt 0:00:05]} 9. f4 {[%emt 0:07:11]} a6 {[%emt 0:07:51]} 10. Nf3 {[%emt 0:04:59]} c5 {[%emt 0:05:13]} 11. Qd2 {[%emt 0:04:59]} Nc6 {[%emt 0:10:15]} 12. Ne2 {[%emt 0:03:17]} Na5 {[%emt 0:07:49]} 13. Ng3 {[%emt 0:03:26]} Rc8 {[%emt 0:04:39]} 14. Bd3 {[%emt 0:08:56]} h5 {[%emt 0:05:52]} 15. O-O {[%emt 0:13:30]} h4 {[%emt 0:07:44]} 16. Nh1 {[%emt 0:00:17]} cxd4 {[%emt 0:05:23]} 17. Nf2 {[%emt 0:03:53]} Nc5 {[%emt 0:02:38]} 18. Rae1 {[%emt 0:01:55]} Nc4 {[%emt 0:02:25]} 19. Bxc4 {[%emt 0:01:30]} dxc4 {[%emt 0:00:03]} 20. Nxd4 {[%emt 0:02:41]} O-O {[%emt 0:03:16]} 21. f5 {[%emt 0:02:32]} Rfd8 {[%emt 0:01:41]} 22. Qf4 {[%emt 0:00:56]} Rxd4 {[%emt 0:02:37]} 23. Qxd4 {[%emt 0:00:19]} exf5 {[%emt 0:00:37]} 24. Qf4 {[%emt 0:03:21]} g6 {[%emt 0:01:54]} 25. Rd1 {[%emt 0:02:14]} Ne6 {[%emt 0:01:15]} 26. Qe3 {[%emt 0:02:11]} Nc5 {[%emt 0:06:58]} 27. Rd4 {[%emt 0:02:45]} b5 {[%emt 0:01:06]} 28. Rfd1 {[%emt 0:02:39]} Ba8 {[%emt 0:02:05]} 29. e6 {[%emt 0:02:36]} Nxe6 {[%emt 0:01:18]} 30. Rd7 {[%emt 0:01:09]} Qf6 {[%emt 0:00:30]} 31. R7d6 {[%emt 0:02:00]} f4 {[%emt 0:01:53]} 32. Qh3 {[%emt 0:01:50]} Rc5 {[%emt 0:01:04]} 33. Ng4 {[%emt 0:01:34]} Qxb2 {[%emt 0:00:38]} 34. Qxh4 {[%emt 0:00:57]} Qxc2 {[%emt 0:00:24]} 35. Rd8+ {[%emt 0:00:56]} Nf8 {[%emt 0:01:06]} 36. Rxf8+ {[%emt 0:01:06]} 1-0

[Event "57th Biel Festival ATO 2024"]
[Site "Biel"]
[Date "2024.07.24"]
[Round "8.3"]
[White "Andrzejewska, Anna"]
[Black "Titov, Dmitrii"]
[Result "1/2-1/2"]
[ECO "B33"]
[WhiteElo "1933"]
[BlackElo "1899"]
[Annotator "RC"]
[PlyCount "111"]
[EventDate "2024.07.03"]
[EventType "swiss"]
[EventCountry "SUI"]
[SourceTitle "playchess.com"]
[Source "ChessBase"]
[SourceQuality "1"]
[TimeControl "40/5400+30:1800+30"]

1. e4 {[%emt 0:00:18]} c5 {[%emt 0:01:40]} 2. Nf3 {[%emt 0:00:06]} Nc6 {[%emt 0:00:56]} 3. d4 {[%emt 0:00:15]} cxd4 {[%emt 0:00:05]} 4. Nxd4 {[%emt 0:00:03]} Nf6 {[%emt 0:00:24]} 5. Nc3 {[%emt 0:00:32]} e5 {[%emt 0:00:17]} 6. Ndb5 {[%emt 0:04:59]} d6 {[%emt 0:00:25]} 7. Bg5 {[%emt 0:02:03]} a6 {[%emt 0:00:29]} 8. Na3 {[%emt 0:00:42]} b5 {[%emt 0:00:58]} 9. Nd5 {[%emt 0:00:40]} Be7 {[%emt 0:00:22]} 10. Bxf6 {[%emt 0:00:46]} Bxf6 {[%emt 0:08:46]} 11. c3 {[%emt 0:00:31]} Bg5 {[%emt 0:04:03]} 12. Nc2 {[%emt 0:01:41]} Be6 {[%emt 0:04:50]} 13. Nce3 {[%emt 0:03:06]} O-O {[%emt 0:00:39]} 14. a4 {[%emt 0:01:09]} Rb8 {[%emt 0:11:45]} 15. axb5 {[%emt 0:02:17]} axb5 {[%emt 0:00:08]} 16. h4 {[%emt 0:18:24]} Bh6 {[%emt 0:00:17]} 17. Ra6 {[%emt 0:01:41]} Bd7 {[%emt 0:10:08]} 18. Ng4 {[%emt 0:09:27]} b4 {[%emt 0:09:37]} 19. Nxh6+ {[%emt 0:18:12]} gxh6 {[%emt 0:00:04]} 20. cxb4 {[%emt 0:01:38]} Nxb4 {[%emt 0:03:52]} 21. Rxd6 {[%emt 0:07:49]} Nxd5 {[%emt 0:04:54]} 22. Rxd5 {[%emt 0:02:55]} Rxb2 {[%emt 0:01:37]} 23. Be2 {[%emt 0:05:02]} Qb8 {[%emt 0:03:53]} 24. O-O {[%emt 0:03:23]} Bc6 {[%emt 0:00:52]} 25. Rd3 {[%emt 0:02:48]} Bxe4 {[%emt 0:01:07]} 26. Rg3+ {[%emt 0:00:44]} Kh8 {[%emt 0:00:13]} 27. Bf3 {[%emt 0:05:12]} Rb1 {[%emt 0:05:24]} 28. Qe2 {[%emt 0:00:45]} Rxf1+ {[%emt 0:00:16]} 29. Qxf1 {[%emt 0:00:19]} Bxf3 {[%emt 0:04:34]} 30. Rxf3 {[%emt 0:00:03]} Qd6 {[%emt 0:05:57]} 31. Qd3 {[%emt 0:02:23]} Qxd3 {[%emt 0:01:11]} 32. Rxd3 {[%emt 0:00:01]} Kg7 {[%emt 0:01:33]} 33. g3 {[%emt 0:01:40]} h5 {[%emt 0:02:10]} 34. Kg2 {[%emt 0:00:38]} Kg6 {[%emt 0:02:46]} 35. Rd6+ {[%emt 0:01:07]} f6 {[%emt 0:00:18]} 36. Kf3 {[%emt 0:00:47]} Ra8 {[%emt 0:00:42]} 37. Rb6 {[%emt 0:00:58]} Kf5 {[%emt 0:02:10]} 38. Rb7 {[%emt 0:01:37]} Ra3+ {[%emt 0:00:40]} 39. Ke2 {[%emt 0:01:02]} Ra2+ {[%emt 0:03:34]} 40. Kf3 {[%emt 0:01:32]} e4+ {[%emt 0:02:22]} 41. Ke3 {[%emt 0:30:36]} Ra3+ {[%emt 0:32:39]} 42. Ke2 {[%emt 0:00:32]} h6 {[%emt 0:00:00]} 43. Rh7 {[%emt 0:00:00]} Kg4 {[%emt 0:00:00]} 44. Rxh6 {[%emt 0:00:00]} Rf3 {[%emt 0:00:00]} 45. Rg6+ {[%emt 0:00:00]} Kh3 {[%emt 0:00:00]} 46. Rh6 {[%emt 0:00:00]} Kg2 {[%emt 0:00:00]} 47. Rxh5 {[%emt 0:00:00]} Rxf2+ {[%emt 0:00:00]} 48. Ke3 {[%emt 0:00:00]} Kxg3 {[%emt 0:00:00]} 49. Kxe4 {[%emt 0:00:00]} Rf4+ {[%emt 0:00:00]} 50. Ke3 {[%emt 0:00:00]} Rf1 {[%emt 0:00:00]} 51. Ke2 {[%emt 0:00:00]} Kg4 {[%emt 0:01:08]} 52. Kxf1 {[%emt 0:00:00]} Kxh5 {[%emt 0:00:07]} 53. Kg2 {[%emt 0:00:00]} Kxh4 {[%emt 0:00:07]} 54. Kf3 {[%emt 0:00:00]} Kg5 {[%emt 0:00:26]} 55. Kg3 {[%emt 0:00:00]} Kf5 {[%emt 0:00:17]} 56. Kf3 {[%emt 0:00:00]} 1/2-1/2

[Event "57th Biel Festival ATO 2024"]
[Site "Biel"]
[Date "2024.07.24"]
[Round "8.4"]
[White "Meshach, Felix"]
[Black "Jud, Marc"]
[Result "0-1"]
[ECO "B23"]
[WhiteElo "1773"]
[BlackElo "1925"]
[Annotator "ChessBase"]
[PlyCount "35"]
[EventDate "2024.07.03"]
[EventType "swiss"]
[EventCountry "SUI"]
[SourceTitle "playchess.com"]
[Source "ChessBase"]
[SourceQuality "1"]
[TimeControl "40/5400+30:1800+30"]

1. e4 {[%emt 0:00:03]} c5 {[%emt 0:00:11]} 2. Nc3 {[%emt 0:00:06]} d6 {[%emt 0:00:20]} 3. f4 {[%emt 0:00:10]} Nc6 {[%emt 0:00:20]} 4. Nf3 {[%emt 0:00:20]} e6 {[%emt 0:00:48]} 5. Bc4 {[%emt 0:00:34]} Nf6 {[%emt 0:01:03]} 6. Bb3 {[%emt 0:02:06]} Be7 {[%emt 0:01:48]} 7. d3 {[%emt 0:00:22]} a6 {[%emt 0:00:22]} 8. a4 {[%emt 0:02:44]} Qc7 {[%emt 0:01:24]} 9. O-O {[%emt 0:00:56]} b6 {[%emt 0:04:22]} 10. f5 {[%emt 0:07:18]} exf5 {[%emt 0:06:15]} 11. Ng5 {[%emt 0:01:19]} Ne5 {[%emt 0:00:40]} 12. Nd5 {[%emt 0:01:24]} Nxd5 {[%emt 0:02:44]} 13. Bxd5 {[%emt 0:00:21]} Bb7 {[%emt 0:03:08]} 14. Rxf5 {[%emt 0:03:16]} Bxg5 {[%emt 0:01:19]} 15. Rxg5 {[%emt 0:01:38]} f6 {[%emt 0:01:04]} 16. Rg3 {[%emt 0:00:28]} O-O-O {[%emt 0:00:51]} 17. Rh3 {[%emt 0:28:27]} h5 {[%emt 0:09:30]} 18. Rg3 {[%emt 0:01:21]} 0-1